bitfinex/quotes_ETHUSD_20251125
["timestamp","ask_amount","ask_price","bid_price","bid_amount"]
[1764033553122,0.31768858,2944.6,2944.3,0.001]
[1764033553440,0.53268858,2944.5,2944.4,0.4841]
[1764033553731,0.31768858,2944.5,2944.4,0.4841]
[1764033553919,0.215,2944.5,2944.4,0.4841]
[1764033554111,0.215,2944.5,2944.4,0.9681]
[1764033556835,0.215,2944.5,2944.4,0.484]
[1764033557637,0.215,2944.5,2944.3,0.001]
[1764033557638,0.94059411,2944.5,2944.3,0.001]
[1764033557815,0.7512069,2944.4,2944.3,0.001]
[1764033558152,0.31753933,2944.4,2944.3,0.001]
[1764033559208,0.31753933,2944.4,2944.3,0.485]
[1764033559631,0.31753933,2944.4,2944.3,0.001]
[1764033559830,0.31753933,2944.4,2944.3,0.4815]
[1764033560054,0.31753933,2944.4,2944.3,0.9463]
[1764033560420,0.31753933,2944.4,2944.3,0.001]
[1764033560754,0.71040848,2944.4,2944.3,0.001]
[1764033561862,0.31753933,2944.4,2944.3,0.9463]
[1764033562060,0.53253933,2944.4,2944.3,0.9463]
[1764033562444,0.215,2944.4,2944.3,0.9463]
[1764033562650,0.31761669,2944.6,2944.3,0.9463]
[1764033562845,0.31761669,2944.9,2944.4,0.4648]
[1764033563062,0.53261669,2944.8,2944.4,0.4648]
[1764033563269,0.215,2944.7,2944.4,0.4648]
[1764033563647,0.215,2944.7,2944.6,0.4805]
[1764033564047,0.215,2944.7,2944.6,0.9453]
[1764033564696,0.215,2944.7,2944.6,0.4805]
[1764033565201,0.215,2944.7,2944.3,0.001]
[1764033565491,0.31770085,2944.7,2944.6,0.4805]
[1764033565669,0.215,2944.7,2944.6,0.4805]
[1764033566078,0.215,2944.7,2944.6,0.9453]
[1764033566372,0.53270085,2944.7,2944.6,0.9453]
[1764033566549,0.215,2944.7,2944.6,0.9453]
[1764033567661,0.53272529,2944.7,2944.6,0.9453]
[1764033567859,0.215,2944.7,2944.3,0.001]
[1764033568267,0.99813575,2944.7,2944.3,0.001]
[1764033568466,0.68041046,2944.7,2944.3,0.001]
[1764033568684,0.31761484,2944.6,2944.3,0.001]
[1764033568856,0.31761484,2944.5,2944.3,0.001]
[1764033569060,0.31761484,2944.6,2944.3,0.001]
[1764033569365,0.31761484,2944.5,2944.3,0.4658]
[1764033569595,0.31761484,2944.6,2944.3,0.4658]
[1764033569967,0.31761484,2944.6,2944.5,0.4805]
[1764033570309,0.31759679,2944.6,2944.5,0.4805]
[1764033570501,0.31759679,2944.6,2944.5,0.9453]
[1764033570662,0.31759679,2944.6,2944.5,0.4805]
[1764033571372,0.79379679,2944.6,2944.3,0.001]
[1764033571575,0.31759679,2944.5,2944.3,0.001]
[1764033571975,0.31759679,2944.5,2944.4,0.9453]
[1764033572176,0.31759679,2944.6,2944.4,0.9453]
[1764033572499,0.215,2944.7,2944.3,0.001]
[1764033572500,0.31759679,2944.5,2944.3,0.001]
[1764033572676,0.31768784,2944.4,2944.3,0.001]
[1764033572878,0.215,2944.7,2944.6,0.4805]
[1764033573082,0.96630502,2944.7,2944.6,0.4805]
[1764033574001,6.06246329,2944.7,2944.3,0.001]
[1764033574198,0.4762,2944.4,2944.3,0.001]
[1764033574366,0.7938735,2944.4,2944.3,0.001]
[1764033574885,0.7938735,2944.4,2944.3,0.4815]
[1764033574886,0.3176735,2944.4,2944.3,0.4815]
[1764033575287,0.215,2944.7,2944.3,0.9463]
[1764033575288,0.3176735,2944.6,2944.3,0.9463]
[1764033575602,0.3176735,2944.5,2944.3,0.001]
[1764033575804,0.3176735,2944.4,2944.3,0.4658]
[1764033576003,0.215,2944.4,2944.3,0.001]
[1764033576219,0.5326735,2944.4,2944.3,0.001]
[1764033576718,0.5326735,2944.4,2944.3,0.4815]
[1764033576884,0.5326735,2944.4,2944.3,0.001]
[1764033577219,0.92554884,2944.4,2944.3,0.001]
[1764033577384,0.5326735,2944.4,2944.3,0.001]
[1764033577587,0.5326735,2944.4,2944.3,0.4815]
[1764033578281,0.5326735,2944.4,2944.3,0.9463]
[1764033578713,0.5326735,2944.4,2944.3,0.4815]
[1764033580921,0.5326735,2944.4,2944.3,0.9463]
[1764033581315,0.5326735,2944.4,2944.3,0.4815]
[1764033581520,0.5326735,2944.4,2944.3,0.001]
[1764033581691,0.5326735,2944.4,2944.3,0.4815]
[1764033582198,1.0088735,2944.4,2944.3,0.001]
[1764033582412,0.5326735,2944.4,2944.3,0.001]
[1764033582619,0.5326735,2944.4,2944.3,0.9463]
[1764033583206,0.5326735,2944.4,2944.3,0.4815]
[1764033583840,0.5326735,2944.4,2944.3,0.9463]
[1764033584022,0.215,2944.4,2944.3,0.9463]
[1764033584624,0.215,2944.4,2944.3,4.34269303]
[1764033585306,0.215,2944.4,2944.3,0.4815]
[1764033585511,0.53253259,2944.4,2944.3,0.001]
[1764033585741,1.00873259,2944.4,2944.3,0.001]
[1764033586043,1.44921788,2944.4,2944.3,0.001]
[1764033586414,1.94761788,2944.4,2944.3,0.001]
[1764033586740,0.97301788,2944.4,2944.3,0.001]
[1764033587652,0.53253259,2944.4,2944.3,0.001]
[1764033589557,0.5325995,2944.4,2944.3,0.001]
[1764033590554,0.5325995,2944.4,2944.3,0.9142]
[1764033592118,0.5325995,2944.4,2944.3,0.4539]
[1764033592325,1.4898995,2944.4,2944.3,0.001]
[1764033592549,5.61177128,2944.4,2944.3,0.001]
[1764033592731,2.39068193,2944.4,2944.3,0.001]
[1764033593129,0.5325995,2944.4,2944.3,0.4539]
[1764033593352,0.5325995,2944.4,2944.3,0.9142]
[1764033593858,0.5325995,2944.4,2944.3,0.4539]
[1764033594922,0.5325995,2944.4,2944.3,4.31059303]
[1764033595129,0.215,2944.4,2944.3,4.31059303]
[1764033596357,0.215,2944.4,2944.3,0.9142]
[1764033596651,0.215,2944.4,2944.3,3.85029303]
[1764033597378,0.215,2944.4,2944.3,4.33979303]
[1764033598561,0.215,2944.4,2944.3,3.85029303]
[1764033599166,0.215,2944.4,2944.3,4.33979303]
[1764033600175,0.31752834,2944.9,2944.3,11.16654302]
[1764033600341,0.215,2945.1,2944.4,0.4895]
[1764033600548,0.80516751,2945.0,2944.3,0.001]
[1764033600856,0.31756751,2944.9,2944.3,0.001]
[1764033601178,0.31756751,2944.8,2944.3,0.001]
[1764033601380,0.31756751,2944.7,2944.3,3.39737172]
[1764033601545,0.215,2944.6,2944.3,0.001]
[1764033602480,0.215,2944.6,2944.5,0.4682]
[1764033603460,0.215,2944.6,2944.3,0.001]
[1764033604755,0.215,2944.6,2944.5,0.4682]
[1764033605079,0.215,2944.6,2944.3,0.001]
[1764033605855,0.215,2944.6,2944.5,0.4682]
[1764033607076,0.215,2944.6,2944.5,3.86436233]
[1764033607401,0.215,2944.6,2944.5,4.35386233]
[1764033608359,0.215,2944.8,2944.5,7.75002466]
[1764033608762,0.215,2944.8,2944.7,0.4682]
[1764033609358,6.49,2945.4,2944.7,0.9577]
[1764033609563,0.002,2945.5,2944.8,0.4895]
[1764033609564,0.53241079,2945.3,2944.8,0.4895]
[1764033609763,0.215,2945.3,2944.8,0.4895]
[1764033610187,0.215,2945.3,2945.2,0.4682]
[1764033610378,0.53238509,2945.3,2945.2,0.4682]
[1764033610698,0.215,2945.3,2945.2,1.1274]
[1764033610876,0.002,2945.5,2945.2,1.1274]
[1764033611072,0.002,2945.5,2945.4,0.4682]
[1764033611673,0.002,2945.5,2945.2,0.1697]
[1764033611875,0.002,2945.5,2945.4,0.4682]
[1764033612197,0.002,2945.5,2945.4,3.8633246]
[1764033612373,0.002,2945.5,2945.4,4.3528246]
[1764033612568,0.002,2945.5,2945.4,0.9577]
[1764033612769,0.002,2945.5,2945.4,3.8633246]
[1764033613172,0.002,2945.5,2945.4,3.3951246]
[1764033614301,0.002,2945.5,2945.4,0.4682]
[1764033614623,0.002,2945.5,2945.4,0.9577]
[1764033616332,0.002,2945.5,2945.4,4.3528246]
[1764033618530,0.002,2945.5,2945.4,4.38677584]
[1764033619133,0.002,2945.5,2945.4,4.79227984]
[1764033619428,0.002,2945.5,2945.4,4.7583286]
[1764033619937,0.002,2945.5,2945.4,4.3528246]
[1764033621135,0.002,2945.5,2945.4,4.38677584]
[1764033621337,0.002,2945.5,2945.4,5.07841871]
[1764033621546,0.002,2945.5,2945.4,5.65392675]
[1764033622223,0.002,2945.5,2945.4,5.61997551]
[1764033622408,0.002,2945.5,2945.4,5.65392675]
[1764033624643,0.002,2945.5,2945.4,5.65492675]
[1764033625146,0.002,2945.8,2945.5,1.13109811]
[1764033625316,0.002,2945.8,2945.7,7.68654474]
[1764033625511,0.002,2945.8,2945.7,8.15644474]
[1764033625715,0.002,2945.8,2945.7,1.368204]
[1764033625944,0.002,2945.8,2945.7,1.583204]
[1764033626145,0.002,2945.8,2945.7,9.13098663]
[1764033626442,0.002,2945.8,2945.7,12.58481768]
[1764033627933,0.002,2946.2,2946.1,0.405504]
[1764033628145,0.4682,2947.9,2946.1,1.31694717]
[1764033628356,0.1871,2948.0,2946.4,11.80611115]
[1764033628568,0.13598712,2948.4,2946.8,0.405504]
[1764033628730,0.4091,2948.5,2947.1,1.13109811]
[1764033628929,0.4682,2948.4,2947.1,1.13109811]
[1764033629128,0.4682,2948.4,2947.3,0.405504]
[1764033629336,0.4682,2948.4,2947.3,0.620504]
[1764033629533,0.4682,2948.4,2947.4,0.4699]
[1764033629830,0.4544,2947.4,2946.9,0.4682]
[1764033630141,0.4544,2947.4,2946.8,0.215]
[1764033630343,0.3456,2947.0,2946.8,0.215]
[1764033630548,0.4533,2946.9,2946.8,3.3935116]
[1764033630744,0.4682,2947.3,2946.8,6.7870232]
[1764033631130,0.4682,2947.2,2946.8,6.7870232]
[1764033631757,0.4682,2947.5,2946.8,6.7870232]
[1764033631965,0.4544,2946.9,2946.8,3.3935116]
[1764033633232,0.4091,2948.5,2946.6,10.18111185]
[1764033633233,0.72559411,2948.1,2946.6,10.18111185]
[1764033633426,0.4091,2948.5,2947.1,0.405504]
[1764033633427,0.4682,2948.4,2947.1,0.405504]
[1764033633857,0.4682,2948.4,2947.0,0.405504]
[1764033635168,0.4682,2948.4,2947.3,10.1788077]
[1764033635872,0.4682,2948.4,2947.3,6.7858718]
[1764033636838,1.19379411,2948.4,2947.3,6.7858718]
[1764033637038,0.49944697,2948.3,2947.3,3.3929359]
[1764033637237,0.4544,2947.4,2947.0,1.01982713]
[1764033637469,0.4544,2947.4,2946.9,6.7867929]
[1764033637660,0.4682,2947.3,2946.9,6.7867929]
[1764033639245,0.4682,2947.3,2946.7,10.18084717]
[1764033640670,0.4682,2947.3,2946.7,6.78722041]
[1764033641166,0.4682,2947.5,2946.7,10.18084717]
[1764033643771,0.4682,2947.5,2946.7,6.78722041]
[1764033645468,0.4682,2947.5,2946.6,10.18222579]
[1764033646256,0.4682,2947.5,2946.6,6.78848386]
[1764033647047,0.6272,2946.7,2946.6,3.39474193]
[1764033647464,1.0954,2946.7,2946.6,0.001]
[1764033648171,0.4544,2946.7,2946.6,0.001]
[1764033648874,0.215,2947.7,2946.6,0.4938]
[1764033648875,0.4682,2947.4,2946.6,0.4938]
[1764033649179,0.31663639,2947.3,2946.6,0.001]
[1764033649380,0.4544,2946.7,2946.6,0.001]
[1764033649750,0.4511,2947.3,2946.6,0.001]
[1764033650077,0.31676609,2947.2,2946.6,0.001]
[1764033650247,0.4511,2947.3,2946.6,0.001]
[1764033650447,0.3168725,2947.2,2946.6,0.001]
[1764033650649,0.4511,2947.3,2946.6,0.001]
[1764033650853,0.3168756,2947.2,2946.6,0.001]
[1764033651080,0.4511,2947.3,2946.6,0.001]
[1764033651278,0.76796854,2947.2,2946.6,0.001]
[1764033651480,0.4511,2947.2,2946.6,6.78848386]
[1764033653156,0.3172674,2947.1,2946.6,6.78848386]
[1764033653360,0.4511,2947.2,2946.6,6.78848386]
[1764033653586,0.4511,2947.1,2946.6,6.78848386]
[1764033658697,0.4511,2947.1,2946.6,0.001]
[1764033658698,0.6757,2946.7,2946.6,0.001]
[1764033659196,1.1654,2946.7,2946.6,0.001]
[1764033659684,0.6757,2946.7,2946.6,0.001]
[1764033660194,0.4874,2946.7,2946.6,0.001]
[1764033660396,0.215,2947.1,2946.6,0.9437]
[1764033660785,0.7047,2947.1,2946.6,0.485]
[1764033661098,0.215,2947.1,2946.6,0.485]
[1764033661267,0.002,2947.2,2947.1,3.39316616]
[1764033661593,0.002,2947.2,2947.1,3.87716616]
[1764033661794,0.4894,2947.2,2947.0,3.39324758]
[1764033661987,0.002,2947.2,2947.1,0.484]
[1764033662298,0.002,2947.2,2947.0,3.39324758]
[1764033662520,0.002,2947.2,2947.1,0.484]
[1764033662699,0.4874,2947.1,2946.7,0.215]
[1764033662872,0.4874,2947.1,2946.8,0.72559411]
[1764033663278,0.4874,2947.1,2946.9,6.7867929]
[1764033663487,0.002,2947.2,2947.0,0.484]
[1764033664298,0.002,2947.2,2946.9,3.39339645]
[1764033664498,0.002,2947.2,2946.9,6.7867929]
[1764033665773,0.4917,2947.2,2946.9,6.7867929]
[1764033667592,0.4917,2947.2,2946.7,6.78725352]
[1764033668635,0.4917,2947.2,2946.7,3.39362676]
[1764033668932,0.4917,2947.2,2946.7,6.78725352]
[1764033669082,0.002,2947.2,2946.7,6.78725352]
[1764033669281,0.4917,2947.2,2946.7,6.78725352]
[1764033669500,0.4874,2946.8,2946.7,3.39362676]
[1764033669701,0.4874,2946.8,2946.6,0.001]
[1764033670082,0.4917,2947.2,2946.7,0.484]
[1764033671387,0.4874,2946.8,2946.6,0.001]
[1764033671588,0.4917,2947.2,2946.6,0.001]
[1764033673783,0.4874,2946.7,2946.6,0.001]
[1764033674190,0.9771,2946.7,2946.6,0.001]
[1764033675222,0.4874,2946.7,2946.6,0.001]
[1764033675424,0.1883,2946.8,2946.6,0.001]
[1764033675586,0.4897,2946.9,2946.6,0.001]
[1764033675988,0.4874,2946.7,2946.6,0.001]
[1764033677187,0.4897,2946.9,2946.6,0.001]
[1764033677825,0.4874,2946.7,2946.6,0.001]
[1764033678230,0.1883,2947.0,2946.6,0.001]
[1764033678527,0.4874,2946.7,2946.6,0.001]
[1764033680740,0.98,2946.7,2946.6,0.001]
[1764033681091,0.4874,2946.7,2946.6,0.001]
[1764033681322,0.98,2946.7,2946.6,0.001]
[1764033681526,1.2974321,2946.7,2946.6,0.001]
[1764033682433,0.98,2946.7,2946.6,0.001]
[1764033685066,0.1883,2947.0,2946.6,0.4718]
[1764033685229,0.31728874,2946.9,2946.6,0.4718]
[1764033685429,0.7096,2947.2,2946.7,3.39362676]
[1764033685760,0.31726231,2947.1,2946.7,6.78725352]
[1764033686061,0.7096,2947.2,2946.7,6.78725352]
[1764033686724,0.4988,2946.8,2946.7,3.39362676]
[1764033687060,0.4988,2946.8,2946.6,0.001]
[1764033687250,0.8051,2946.7,2946.6,0.001]
[1764033688654,0.3125,2946.7,2946.6,0.001]
[1764033688878,0.18,2946.9,2946.6,0.4718]
[1764033689472,0.6726,2946.9,2946.7,3.39362676]
[1764033689858,0.4988,2946.8,2946.7,3.39362676]
[1764033690059,0.18,2947.1,2946.7,3.39362676]
[1764033690262,0.7096,2947.2,2946.7,7.25805352]
[1764033690263,0.217,2947.2,2946.7,7.25805352]
[1764033690460,0.217,2947.2,2946.7,7.74955352]
[1764033690969,0.217,2947.2,2947.1,0.4708]
[1764033691180,0.217,2947.2,2946.7,6.78725352]
[1764033691381,0.7096,2947.2,2946.7,6.78725352]
[1764033691599,0.7096,2947.2,2946.6,6.78848386]
[1764033691892,0.217,2947.2,2946.6,7.27998386]
[1764033692295,0.7096,2947.2,2946.6,6.78848386]
[1764033692697,0.217,2947.2,2946.6,7.27998386]
[1764033692996,0.217,2947.2,2946.6,6.78848386]
[1764033693291,0.7096,2947.2,2946.6,6.82242127]
[1764033693479,0.217,2947.2,2946.7,0.4915]
[1764033693681,0.217,2947.2,2947.1,0.4708]
[1764033694075,0.002,2947.2,2947.1,0.9623]
[1764033694762,0.002,2947.2,2947.1,0.4708]
[1764033695976,0.002,2947.2,2947.1,3.86396616]
[1764033696274,0.002,2947.2,2947.1,4.35546616]
[1764033696485,0.002,2947.2,2947.1,4.38939782]
[1764033697169,0.002,2947.2,2947.1,5.08106027]
[1764033699007,0.002,2947.2,2947.1,5.11499193]
[1764033699697,0.002,2947.2,2947.1,5.48656427]
[1764033700004,0.002,2947.2,2947.1,5.52049593]
[1764033700180,0.002,2947.2,2947.1,5.48656427]
[1764033703202,0.002,2947.2,2947.1,5.21006427]
[1764033703391,0.002,2947.2,2947.1,5.73549593]
[1764033703806,0.002,2947.2,2947.1,5.52049593]
[1764033703980,0.002,2947.2,2947.1,5.62251349]
[1764033704184,0.002,2947.2,2947.1,5.70156427]
[1764033704383,0.002,2947.2,2947.1,5.48656427]
[1764033704595,0.002,2947.2,2947.1,10.46703358]
[1764033704772,0.002,2947.2,2947.1,9.97553358]
[1764033707894,0.002,2947.2,2947.1,10.46703358]
[1764033710371,0.002,2947.2,2947.1,10.56003358]
[1764033711657,0.002,2947.2,2947.1,15.54050289]
[1764033712011,0.002,2947.2,2947.1,10.56003358]
[1764033712609,0.002,2947.2,2947.1,15.54050289]
[1764033713311,0.002,2947.2,2947.1,10.56003358]
[1764033713512,0.002,2947.2,2947.1,15.54050289]
[1764033713905,0.002,2947.2,2947.1,15.67644564]
[1764033714444,0.002,2947.2,2947.1,10.60297633]
[1764033714740,0.002,2947.2,2947.1,10.81797633]
[1764033717413,0.002,2947.2,2947.1,15.89144564]
[1764033717608,0.002,2947.5,2947.3,0.093]
[1764033717809,0.002,2947.5,2947.4,6.17186342]
[1764033718039,0.002,2947.5,2947.4,6.62446342]
[1764033718346,0.002,2947.5,2947.4,7.10846342]
[1764033718728,0.002,2947.5,2947.4,10.50128421]
[1764033719048,0.002,2947.5,2947.4,10.04868421]
[1764033719837,0.002,2947.5,2947.4,10.50128421]
[1764033720031,0.002,2947.5,2947.4,10.04868421]
[1764033720433,0.002,2947.5,2947.4,10.18518821]
[1764033721164,0.9708,2947.5,2947.4,9.50438821]
[1764033721317,0.002,2947.5,2947.4,9.97018821]
[1764033721514,0.002,2947.5,2947.4,14.95065752]
[1764033721822,0.002,2947.5,2947.4,15.40325752]
[1764033722017,0.002,2947.5,2947.4,15.88725752]
[1764033722552,0.002,2947.8,2947.5,1.13109811]
[1764033722721,0.002,2947.8,2947.7,5.85177331]
[1764033722922,0.002,2947.8,2947.7,6.06677331]
[1764033723319,0.002,2947.8,2947.7,9.45924879]
[1764033724520,0.002,2947.8,2947.7,9.45624893]
[1764033724920,0.002,2947.8,2947.7,9.90884893]
[1764033725154,0.002,2947.8,2947.7,9.65034893]
[1764033725336,0.002,2948.4,2947.9,0.405504]
[1764033725547,0.002,2948.4,2948.3,1.76659811]
[1764033725731,0.002,2949.0,2948.9,0.405504]
[1764033725938,0.002,2949.6,2948.9,1.538904]
[1764033726125,0.002,2949.6,2949.2,6.57436756]
[1764033726321,0.486,2950.7,2949.3,1.13109811]
[1764033726562,0.486,2950.7,2950.0,1.59689811]
[1764033726801,0.486,2950.6,2950.0,1.59689811]
[1764033727119,0.002,2950.6,2950.0,2.04949811]
[1764033727467,0.002,2950.6,2950.0,5.43932861]
[1764033728272,0.484,2950.5,2950.0,4.52092861]
[1764033728882,0.4868,2950.1,2950.0,4.73592861]
[1764033729083,0.002,2950.1,2950.0,5.20172861]
[1764033729325,0.002,2950.1,2950.0,4.73592861]
[1764033729617,0.002,2950.1,2950.0,4.52092861]
[1764033729823,0.4868,2950.1,2950.0,4.73592861]
[1764033729974,0.4868,2950.1,2950.0,4.52092861]
[1764033730184,0.9708,2950.1,2950.0,4.52092861]
[1764033730380,0.002,2950.1,2950.0,4.52092861]
[1764033730994,0.002,2950.1,2950.0,4.98672861]
[1764033731613,0.002,2950.1,2950.0,5.57515688]
[1764033731979,0.002,2950.1,2950.0,4.65675688]
[1764033732180,0.002,2950.1,2950.0,5.12255688]
[1764033732519,0.002,2950.1,2950.0,5.57515688]
[1764033733708,0.002,2950.1,2950.0,5.12255688]
[1764033736398,0.002,2950.1,2950.0,4.65675688]
[1764033736718,0.9708,2950.1,2950.0,3.3898305]
[1764033738318,0.9708,2950.1,2949.9,3.79544942]
[1764033738518,0.484,2950.0,2949.9,3.38994542]
[1764033738699,0.9688,2950.0,2949.9,3.38994542]
[1764033740286,0.4848,2950.0,2949.7,6.78035054]
[1764033740484,0.002,2950.1,2949.7,10.17052581]
[1764033740721,0.002,2950.1,2949.8,0.0339006]
[1764033740904,0.4549,2950.1,2949.7,6.78035054]
[1764033741106,0.6444,2949.8,2949.7,3.39017527]
[1764033741793,1.0973,2949.8,2949.7,3.39017527]
[1764033742521,1.0973,2949.8,2949.6,6.78054913]
[1764033742714,0.7958,2949.7,2949.6,4.11585304]
[1764033743186,0.3429,2949.7,2949.6,4.11585304]
[1764033743393,0.4529,2950.0,2949.6,11.38403344]
[1764033744092,0.002,2950.1,2949.7,0.405504]
[1764033744326,0.002,2950.1,2949.9,0.4876]
[1764033744520,0.002,2950.1,2950.0,4.52092861]
[1764033744727,0.4549,2950.1,2950.0,4.11542461]
[1764033744923,0.9177,2950.1,2950.0,4.11542461]
[1764033745089,0.002,2950.1,2950.0,4.11542461]
[1764033745308,0.002,2950.1,2950.0,5.04242691]
[1764033745929,0.9177,2950.1,2950.0,3.3898305]
[1764033747317,0.9177,2950.1,2949.8,8.12621879]
[1764033747518,0.4616,2949.9,2949.8,4.73615845]
[1764033748603,0.6432,2949.9,2949.8,4.11565445]
[1764033748804,1.0961,2949.9,2949.8,4.11565445]
[1764033749019,0.002,2950.1,2949.8,7.50571479]
[1764033749238,0.4628,2949.9,2949.8,4.11565445]
[1764033749733,1.0973,2949.9,2949.8,3.39006034]
[1764033750836,1.0973,2949.9,2949.6,3.39024065]
[1764033751033,0.4529,2949.8,2949.6,3.39024065]
[1764033751337,0.4628,2949.7,2949.5,0.001]
[1764033751537,0.7958,2949.6,2949.5,0.001]
[1764033752335,0.6345,2949.9,2949.5,0.001]
[1764033752638,0.4628,2949.6,2949.5,0.001]
[1764033753360,0.4628,2949.6,2949.5,3.39140515]
[1764033753361,0.9157,2949.6,2949.5,3.39140515]
[1764033753827,0.9157,2949.6,2949.5,0.001]
[1764033754257,1.2324661,2949.6,2949.5,0.001]
[1764033756922,1.2324661,2949.6,2949.3,0.001]
[1764033757118,3.78663529,2949.9,2949.3,0.001]
[1764033757119,0.3429,2949.4,2949.3,0.001]
[1764033757316,0.6596661,2949.4,2949.3,0.001]
[1764033757533,1.1125661,2949.4,2949.3,0.001]
[1764033760160,0.7958,2949.4,2949.3,0.001]
[1764033760658,0.1816,2949.9,2949.3,0.001]
[1764033760659,0.4529,2949.8,2949.3,0.001]
[1764033761032,0.4628,2949.4,2949.3,0.001]
[1764033761425,0.4529,2949.8,2949.3,0.001]
[1764033761725,0.4529,2949.8,2949.3,0.4886]
[1764033762140,0.4529,2949.8,2949.3,0.001]
[1764033762476,0.4628,2949.4,2949.3,0.001]
[1764033762955,0.9157,2949.4,2949.3,0.001]
[1764033763363,1.23219472,2949.4,2949.3,0.001]
[1764033764063,1.4494736,2949.4,2949.3,0.001]
[1764033764422,1.4494736,2949.4,2949.0,0.001]
[1764033764423,0.72559411,2949.3,2949.0,0.001]
[1764033764623,0.3429,2949.1,2949.0,0.001]
[1764033764828,1.11229472,2949.1,2948.1,3.39201482]
[1764033765053,0.31649472,2949.0,2948.1,3.39201482]
[1764033765260,0.6432,2948.2,2948.1,3.39201482]
[1764033765446,0.6432,2948.2,2947.8,6.7847208]
[1764033766048,0.1816,2948.6,2948.1,0.4876]
[1764033766451,0.4628,2948.2,2947.8,10.1770812]
[1764033766827,0.6345,2948.6,2948.1,0.4876]
[1764033767162,0.6345,2948.6,2948.1,0.6573]
[1764033767372,0.6345,2948.6,2948.2,6.78380028]
[1764033767561,0.1816,2948.6,2948.2,10.17570042]
[1764033768539,0.1816,2948.6,2948.2,6.78380028]
[1764033768777,0.6345,2948.6,2948.2,6.78380028]
[1764033769074,0.215,2948.8,2948.2,10.17570042]
[1764033769776,0.6679,2948.8,2948.2,10.17570042]
[1764033770368,0.1816,2948.9,2948.2,10.17570042]
[1764033770739,0.6682,2948.9,2948.2,10.17570042]
[1764033771371,0.6835,2949.1,2948.4,10.17501015]
[1764033771673,0.6835,2949.1,2948.4,6.7833401]
[1764033771977,0.4866,2949.0,2948.4,6.7833401]
[1764033772272,0.4866,2949.0,2948.5,0.72559411]
[1764033772577,0.1969,2949.1,2948.5,0.72559411]
[1764033773055,0.6835,2949.1,2948.5,0.72559411]
[1764033773258,0.7016,2949.4,2948.5,0.75950966]
[1764033773470,0.7016,2949.4,2948.5,0.72559411]
[1764033773675,0.7016,2949.4,2948.6,10.17432]
[1764033773977,0.7016,2949.4,2948.7,0.03391324]
[1764033774472,0.215,2949.4,2948.6,10.17432]
[1764033774773,0.7016,2949.4,2948.6,10.17432]
[1764033774956,0.7016,2949.4,2948.7,0.03391324]
[1764033775368,0.7016,2949.4,2948.7,0.72559411]
[1764033775582,0.002,2949.6,2948.9,10.17328494]
[1764033775882,0.002,2949.6,2949.0,0.03390979]
[1764033776272,0.002,2949.6,2949.0,0.4781]
[1764033776977,0.002,2949.6,2949.0,0.6931]
[1764033777486,0.4525,2949.5,2949.0,0.620504]
[1764033777652,0.4525,2949.5,2949.1,6.78173]
[1764033779046,0.002,2949.6,2949.1,10.172595]
[1764033779255,0.4545,2949.6,2949.1,10.172595]
[1764033779770,0.4545,2949.6,2949.1,6.78173]
[1764033780803,0.002,2949.6,2949.5,0.4853]
[1764033780951,0.002,2949.6,2949.2,1.20369411]
[1764033780952,0.002,2949.6,2949.2,0.72559411]
[1764033781152,0.002,2949.6,2949.3,0.03390635]
[1764033781453,0.002,2949.6,2949.2,0.72559411]
[1764033781653,0.002,2949.6,2949.3,6.78127012]
[1764033782084,0.4545,2949.6,2949.3,6.78127012]
[1764033782285,0.002,2949.6,2949.3,6.78127012]
[1764033782884,0.002,2949.6,2949.3,3.39063506]
[1764033782885,0.4899,2949.4,2949.3,3.39063506]
[1764033783284,0.002,2949.6,2949.3,6.78127012]
[1764033783802,0.002,2949.6,2949.5,0.4853]
[1764033784004,0.002,2949.6,2949.5,0.890804]
[1764033784375,0.002,2949.6,2949.3,6.78127012]
[1764033784569,0.002,2949.6,2949.3,6.99627012]
[1764033784787,0.002,2949.6,2949.4,0.405504]
[1764033785186,0.002,2949.6,2949.5,0.4853]
[1764033785384,0.002,2949.6,2949.5,0.51920405]
[1764033785585,0.002,2949.6,2949.5,4.7932132]
[1764033786274,0.002,2949.6,2949.5,3.39040515]
[1764033786477,0.4919,2949.6,2949.5,3.39040515]
[1764033787707,0.4919,2949.6,2949.3,7.18677412]
[1764033787906,0.4919,2949.6,2949.3,6.78127012]
[1764033788114,0.002,2949.6,2949.3,6.78127012]
[1764033788474,0.002,2949.6,2949.5,0.4853]
[1764033789099,0.002,2949.6,2949.5,0.9634]
[1764033789502,0.4919,2949.6,2949.4,0.72559411]
[1764033789700,0.002,2949.6,2949.5,3.87570515]
[1764033790081,0.002,2949.6,2949.5,3.9096092]
[1764033790411,0.002,2949.6,2949.5,4.3877092]
[1764033790983,0.4919,2949.6,2949.5,3.39040515]
[1764033791185,0.002,2949.6,2949.5,3.39040515]
[1764033792016,0.002,2949.6,2949.4,6.78103627]
[1764033792518,0.002,2949.6,2949.5,0.4853]
[1764033792720,0.4919,2949.6,2949.4,6.78103627]
[1764033793019,0.3016,2949.5,2949.4,3.79602017]
[1764033793397,0.002,2949.6,2949.4,7.67184027]
[1764033794082,0.002,2949.6,2949.4,7.26633627]
[1764033794914,0.002,2949.6,2949.5,0.9634]
[1764033795116,0.002,2949.6,2949.5,0.99730405]
[1764033795316,0.002,2949.6,2949.5,0.51920405]
[1764033795888,0.002,2949.6,2949.5,0.4853]